bitfinex/quotes_SOLUSD_20230401
["timestamp","ask_amount","ask_price","bid_price","bid_amount"]
[1680340505052,115.6312,20.999,20.991,17.0]
[1680340511360,21.62,21.0,20.991,17.0]
[1680340511660,133.0319,21.01,20.992,20.0]
[1680340511863,133.0319,21.01,20.993,27.0]
[1680340513268,133.0319,21.01,20.994,7.51528632]
[1680340513470,133.0319,21.01,20.996,10.0]
[1680340513674,133.0319,21.01,20.996,14.36829104]
[1680340513852,133.0319,21.01,20.998,14.61625047]
[1680340514054,133.0319,21.01,20.999,17.0]
[1680340514877,10.0,21.008,20.999,17.0]
[1680340515059,10.0,21.008,20.997,17.0]
[1680340528485,10.0,21.009,20.997,17.0]
[1680340528689,165.2619,21.01,20.997,21.83411195]
[1680340528988,165.2619,21.01,20.998,10.0]
[1680340529189,165.2619,21.01,20.999,17.0]
[1680340537396,138.2719,21.01,20.999,17.0]
[1680340537774,138.2719,21.01,21.0,10.0]
[1680340537979,138.2719,21.01,21.001,22.98862093]
[1680340538487,138.2719,21.01,21.002,10.0]
[1680340538685,138.2719,21.01,21.003,17.0]
[1680340543100,138.2719,21.01,21.002,17.0]
[1680340543297,138.2719,21.01,21.001,17.0]
[1680340566024,138.2719,21.01,21.001,17.0]
[1680340582345,111.4019,21.01,21.001,17.0]
[1680340582530,132.9819,21.01,21.001,17.0]
[1680340583549,132.9819,21.01,20.998,16.16567407]
[1680340583752,132.9819,21.01,20.997,14.37349668]
[1680340584050,132.9819,21.01,20.992,34.65217359]
[1680340584235,10.0,21.009,20.992,34.65217359]
[1680340585149,10.0,21.009,20.995,10.0]
[1680340585449,10.0,21.009,20.996,17.0]
[1680340595155,10.0,21.009,20.995,10.0]
[1680340595357,10.0,21.009,20.996,17.0]
[1680340595556,10.0,21.009,20.997,10.0]
[1680340595757,10.0,21.009,20.998,17.0]
[1680340601257,10.0,21.009,20.996,17.0]
[1680340604847,10.0,21.009,20.994,17.0]
[1680340607066,21.51,21.0,20.994,17.0]
[1680340614172,21.51,21.0,20.993,17.0]
[1680340637982,21.51,21.0,20.99,29.056]
[1680340638189,21.51,21.0,20.991,17.0]
[1680340638782,21.51,21.0,20.991,10.0]
[1680340638978,21.51,21.0,20.992,17.0]
[1680340653195,21.51,21.0,20.987,116.4483]
[1680340653400,21.51,21.0,20.99,17.0]
[1680340680227,21.51,21.0,20.988,117.9191]
[1680340680524,10.0,20.999,20.986,14.31356927]
[1680340680713,10.0,20.999,20.987,17.0]
[1680340680915,128.6235,20.999,20.987,17.0]
[1680340684715,21.51,21.0,20.987,17.0]
[1680340685124,21.51,21.0,20.988,16.11130414]
[1680340685323,21.51,21.0,20.989,17.0]
[1680340685633,21.51,21.0,20.99,10.0]
[1680340685827,21.51,21.0,20.992,10.0]
[1680340686039,21.51,21.0,20.993,17.0]
[1680340699634,71.62087613,21.008,20.993,17.0]
[1680340699835,20.0,21.007,20.994,10.0]
[1680340700036,20.0,21.007,20.995,17.0]
[1680340700844,20.0,21.007,20.996,10.0]
[1680340701142,20.0,21.007,20.998,10.0]
[1680340701345,20.0,21.007,20.999,17.0]
[1680340703847,132.9819,21.01,20.999,17.0]
[1680340704147,132.9819,21.01,21.0,10.0]
[1680340704441,132.9819,21.01,21.001,17.0]
[1680340710552,132.9819,21.01,20.999,17.0]
[1680340721560,132.9819,21.01,21.0,10.0]
[1680340721754,132.9819,21.01,21.001,17.0]
[1680340722155,132.9819,21.01,21.002,10.0]
[1680340722360,21.58,21.01,21.003,17.0]
[1680340722654,21.58,21.01,21.004,10.0]
[1680340722839,21.58,21.01,21.005,17.0]
[1680340737953,21.47889361,21.01,21.005,17.0]
[1680340738157,21.47889361,21.01,21.006,10.0]
[1680340738361,31.58,21.02,21.007,17.0]
[1680340745479,21.58,21.02,21.007,17.0]
[1680340748586,21.58,21.02,21.008,10.0]
[1680340748775,21.58,21.02,21.009,17.0]
[1680340749371,21.58,21.02,21.01,10.0]
[1680340749566,21.58,21.02,21.012,10.0]
[1680340749877,21.58,21.02,21.013,17.0]
[1680340750277,21.58,21.02,21.014,10.0]
[1680340750475,21.58,21.02,21.015,17.0]
[1680340750678,69.4042,21.021,21.015,17.0]
[1680340751582,69.4042,21.021,21.012,10.0]
[1680340751890,21.58,21.02,21.013,17.0]
[1680340753493,21.58,21.02,21.011,17.0]
[1680340754182,21.58,21.02,21.012,10.0]
[1680340754480,21.58,21.02,21.013,17.0]
[1680340755086,21.58,21.02,21.013,16.9324313]
[1680340759393,21.58,21.02,21.014,17.0]
[1680340759695,21.58,21.02,21.011,17.0]
[1680340759897,21.58,21.02,21.009,17.0]
[1680340762789,21.58,21.02,21.01,10.0]
[1680340763091,21.58,21.02,21.011,17.0]
[1680340763290,21.58,21.02,21.012,10.0]
[1680340763501,21.58,21.02,21.013,17.0]
[1680340767396,21.58,21.02,21.011,17.0]
[1680340797233,21.58,21.02,21.01,17.0]
[1680340797632,21.58,21.02,21.009,17.0]
[1680340797832,10.0,21.019,21.009,17.0]
[1680340804049,31.58,21.02,21.009,17.0]
[1680340807753,21.58,21.02,21.009,17.0]
[1680340808742,21.58,21.02,21.01,16.36644677]
[1680340808942,21.58,21.02,21.011,17.0]
[1680340809146,21.58,21.02,21.012,10.0]
[1680340809355,21.58,21.02,21.013,17.0]
[1680340811758,21.58,21.02,21.013,17.0]
[1680340822467,21.58,21.02,21.012,10.0]
[1680340822670,21.58,21.02,21.013,17.0]
[1680340841476,21.58,21.02,21.014,10.0]
[1680340841675,21.58,21.02,21.016,10.0]
[1680340841880,71.62087613,21.028,21.017,17.0]
[1680340842063,20.0,21.027,21.017,17.0]
[1680340848085,10.0,21.026,21.015,17.0]
[1680340848386,20.0,21.025,21.015,17.0]
[1680340852178,10.0,21.025,21.015,17.0]
[1680340852377,20.0,21.024,21.015,17.0]
[1680340856377,20.0,21.024,21.013,17.0]
[1680340856578,21.51,21.02,21.013,17.0]
[1680340879304,21.51,21.02,21.013,18.785841]
[1680340884827,21.51,21.02,21.013,1.785841]
[1680340885509,21.51,21.02,21.013,4.1e-05]
[1680340885703,10.0,21.019,21.013,4.1e-05]
[1680340887028,7.15156067,21.018,21.013,4.1e-05]
[1680340887222,27.15156067,21.018,21.013,4.1e-05]
[1680340887918,10.0,21.016,21.013,4.1e-05]
[1680340888121,10.0,21.014,21.013,4.1e-05]
[1680340888324,30.0,21.014,21.013,4.1e-05]
[1680340891419,37.15156067,21.014,21.013,4.1e-05]
[1680340906435,30.0,21.014,21.013,4.1e-05]
[1680340913438,47.0,21.014,21.013,4.1e-05]
[1680340917237,54.15156067,21.014,21.013,4.1e-05]
[1680340917943,37.15156067,21.014,21.013,4.1e-05]
[1680340918547,20.0,21.014,21.013,4.1e-05]
[1680340943368,44.15156067,21.014,21.013,4.1e-05]
[1680340943877,54.15156067,21.014,21.013,4.1e-05]
[1680340944061,37.15156067,21.014,21.013,4.1e-05]
[1680340947985,20.0,21.014,21.013,4.1e-05]
[1680340960190,44.15156067,21.014,21.013,4.1e-05]
[1680340972597,27.15156067,21.014,21.013,4.1e-05]
[1680340977318,44.15156067,21.014,21.013,4.1e-05]
[1680340989522,27.15156067,21.014,21.013,4.1e-05]
[1680340999527,20.0,21.014,21.013,4.1e-05]
[1680341003121,27.15156067,21.014,21.013,4.1e-05]
[1680341006934,44.15156067,21.014,21.013,4.1e-05]
[1680341011141,54.15156067,21.014,21.013,4.1e-05]
[1680341013521,125.7724368,21.014,21.013,4.1e-05]
[1680341023545,36.73657638,21.015,21.014,254.2275632]
[1680341023939,43.88813705,21.015,21.014,254.2275632]
[1680341025645,63.88813705,21.015,21.014,254.2275632]
[1680341025864,80.88813705,21.015,21.014,254.2275632]
[1680341026044,80.95975793,21.015,21.014,254.2275632]
[1680341027651,80.95975793,21.015,21.014,203.75473518]
[1680341035453,63.95975793,21.015,21.014,203.75473518]
[1680341036856,80.95975793,21.015,21.014,203.75473518]
[1680341054368,80.95975793,21.015,21.014,203.75473518]
[1680341055374,54.22318155,21.015,21.014,203.75473518]
[1680341057661,54.22318155,21.015,21.014,189.13129694]
[1680341062859,87.45984276,21.015,21.014,0.00129694]
[1680341063059,10.0,21.014,21.013,4.1e-05]
[1680341063259,47.0,21.014,21.013,4.1e-05]
[1680341063474,80.88813705,21.014,21.013,4.1e-05]
[1680341066169,10.0,21.013,21.001,111.1753]
[1680341066375,21.6,21.01,21.001,111.1753]
[1680341066569,20.0,21.009,21.001,111.1753]
[1680341066770,19.041,21.007,21.001,111.1753]
[1680341067276,30.0,21.006,21.001,111.1753]
[1680341067482,37.15156067,21.006,21.001,111.1753]
[1680341068384,17.0,21.005,21.001,111.1753]
[1680341068563,10.0,21.003,21.001,111.1753]
[1680341068759,37.0,21.002,20.999,115.3965]
[1680341068966,37.0,21.002,20.992,108.6331]
[1680341069164,10.0,20.999,20.988,112.998]
[1680341069377,21.6,21.0,20.988,112.998]
[1680341073670,47.0,20.999,20.988,112.998]
[1680341074087,10.0,20.998,20.988,112.998]
[1680341074384,37.0,20.997,20.988,112.998]
[1680341083692,20.0,20.997,20.989,10.0]
[1680341083876,20.0,20.999,20.989,10.0]
[1680341098501,17.0,20.998,20.989,10.0]
[1680341098704,20.0,20.997,20.989,10.0]
[1680341098887,20.0,20.997,20.988,112.998]
[1680341099086,27.0,20.996,20.988,112.998]
[1680341099502,20.0,20.995,20.988,112.998]
[1680341105298,20.0,20.998,20.989,10.0]
[1680341105789,20.0,20.999,20.989,10.0]
[1680341120913,20.0,20.999,20.988,112.998]
[1680341123329,20.0,20.999,20.989,10.0]
[1680341145126,20.0,20.999,20.991,10.0]
[1680341145328,21.6,21.0,20.991,10.0]
[1680341145529,21.6,21.0,20.992,17.0]
[1680341145742,21.6,21.0,20.993,10.0]
[1680341145941,21.6,21.0,20.994,17.0]
[1680341146132,21.6,21.0,20.995,10.0]
[1680341146448,0.07162088,21.009,20.997,10.0]
[1680341146639,20.07162088,21.009,20.997,10.0]
[1680341154953,20.07162088,21.009,20.999,10.0]
[1680341157245,20.0,21.009,20.999,10.0]
[1680341157454,0.07162088,21.008,20.999,10.0]
[1680341158757,0.07162088,21.008,20.997,10.0]
[1680341159259,0.07162088,21.008,20.999,10.0]
[1680341163154,0.07162088,21.008,20.998,17.0]
[1680341168959,0.07162088,21.008,20.995,10.0]
[1680341169447,10.07162088,21.008,20.995,10.0]
[1680341169648,20.0,21.007,20.995,10.0]
[1680341183486,20.0,21.007,20.993,10.0]
[1680341183677,21.5,21.0,20.994,17.0]
[1680341192573,21.5,21.0,20.993,10.0]
[1680341192782,21.5,21.0,20.995,10.0]
[1680341192983,10.0,21.006,20.995,10.0]
[1680341193183,20.0,21.005,20.995,10.0]
[1680341193384,20.0,21.005,20.99,119.3794]
[1680341193684,21.6,21.0,20.99,119.3794]
[1680341195187,10.0,20.999,20.99,119.3794]
[1680341195486,10.0,20.999,20.981,10.0]
[1680341195790,10.0,20.999,20.983,10.0]
[1680341196278,21.6,21.0,20.983,10.0]
[1680341196478,21.6,21.0,20.989,10.0]
[1680341200192,21.6,21.0,20.983,10.0]
[1680341201608,56.049,20.999,20.982,109.2952]
[1680341201907,21.6,20.99,20.982,109.2952]
[1680341202284,21.6,20.99,20.983,10.0]
[1680341207703,21.6,20.99,20.98,10.0]
[1680341208602,21.6,20.99,20.979,21.6]
[1680341208910,21.6,20.99,20.98,17.0]
[1680341209112,21.6,20.99,20.981,10.0]
[1680341211493,21.6,20.99,20.98,27.0]
[1680341216318,21.6,20.99,20.981,10.0]
[1680341216613,21.52758539,20.99,20.981,10.0]
[1680341218919,21.52758539,20.99,20.98,27.0]
[1680341223229,21.52758539,20.99,20.98,10.0]
[1680341225130,21.52758539,20.99,20.982,10.0]
[1680341227133,21.52758539,20.99,20.98,10.0]
[1680341232821,28.67914606,20.99,20.98,10.0]
[1680341236828,28.67914606,20.99,20.977,121.4016]
[1680341238014,28.67914606,20.99,20.978,10.0]
[1680341240231,28.67914606,20.99,20.973,127.0362]
[1680341240437,21.5,20.98,20.973,127.0362]
[1680341240734,21.5,20.98,20.973,10.0]
[1680341244937,21.5,20.98,20.971,10.0]
[1680341245235,21.5,20.98,20.973,10.0]
[1680341247435,21.5,20.98,20.974,17.0]
[1680341247623,21.5,20.98,20.975,10.0]
[1680341247822,20.0,20.989,20.975,10.0]
[1680341248225,7.15156067,20.988,20.975,10.0]
[1680341248534,20.0,20.987,20.975,10.0]
[1680341248926,7.15156067,20.986,20.975,10.0]
[1680341249123,20.0,20.985,20.975,10.0]
[1680341250638,10.0,20.984,20.971,10.0]
[1680341250848,21.6,20.98,20.971,10.0]
[1680341254760,21.6,20.98,20.966,118.4166]
[1680341255051,28.75156067,20.98,20.966,118.4166]
[1680341256849,28.75156067,20.98,20.968,17.0]
[1680341257143,28.75156067,20.98,20.969,10.0]
[1680341257330,61.12156067,20.98,20.969,10.0]
[1680341258246,61.12156067,20.98,20.959,36.38175413]
[1680341258553,10.0,20.978,20.96,10.0]
[1680341258740,37.0,20.977,20.964,19.078715]
[1680341258936,10.0,20.976,20.964,19.078715]
[1680341259158,20.0,20.975,20.964,19.078715]
[1680341260351,27.15156067,20.975,20.964,19.078715]
[1680341262951,27.0,20.97,20.964,19.078715]
[1680341270159,27.0,20.97,20.96,10.0]
[1680341270366,27.0,20.97,20.962,10.0]
[1680341275156,27.0,20.97,20.961,17.0]
[1680341276542,27.0,20.97,20.96,10.0]
[1680341276744,53.83,20.97,20.953,130.272324]
[1680341276942,53.83,20.97,20.953,144.66739118]
[1680341277451,53.83,20.97,20.955,10.0]
[1680341278159,53.83,20.97,20.957,17.0]
[1680341278363,53.83,20.97,20.958,10.0]
[1680341278565,10.0,20.969,20.958,10.0]
[1680341280462,53.83,20.97,20.958,10.0]
[1680341283466,53.83,20.97,20.957,17.0]
[1680341287763,53.83,20.97,20.955,124.4319]
[1680341287962,53.83,20.97,20.957,17.0]
[1680341288158,53.83,20.97,20.958,10.0]
[1680341290567,60.98156067,20.97,20.958,10.0]
[1680341292364,60.98156067,20.97,20.959,17.0]
[1680341292552,60.98156067,20.97,20.96,10.0]
[1680341293465,60.98156067,20.97,20.958,10.0]
[1680341294670,60.98156067,20.97,20.955,124.4319]
[1680341294875,20.0,20.969,20.956,17.0]
[1680341295058,10.0,20.968,20.956,17.0]
[1680341295258,20.0,20.967,20.956,17.0]
[1680341295969,20.0,20.967,20.955,10.0]
[1680341296475,27.08,20.96,20.955,10.0]
[1680341299276,27.08,20.96,20.955,17.0]
[1680341300173,27.08,20.96,20.954,10.0]
[1680341305683,27.08,20.96,20.952,10.0]
[1680341308382,27.08,20.96,20.953,17.0]
[1680341308574,27.08,20.96,20.954,10.0]
[1680341308774,53.91,20.97,20.955,17.0]
[1680341308972,53.91,20.97,20.956,10.0]
[1680341309174,53.91,20.97,20.957,17.0]
[1680341309682,53.91,20.97,20.958,10.0]
[1680341309880,53.91,20.97,20.96,10.0]
[1680341311986,53.91,20.97,20.958,10.0]
[1680341312289,61.06156067,20.97,20.958,10.0]
[1680341314809,17.0,20.969,20.958,10.0]
[1680341315792,24.15156067,20.969,20.958,10.0]
[1680341316297,24.15156067,20.969,20.954,10.0]
[1680341316495,26.89,20.96,20.951,10.0]
[1680341317581,30.0,20.968,20.951,10.0]
[1680341317582,20.0,20.968,20.951,10.0]
[1680341317781,19.5,20.968,20.953,10.0]
[1680341317982,7.15156067,20.967,20.953,10.0]
[1680341319395,7.15156067,20.967,20.955,10.0]
[1680341320081,20.0,20.966,20.955,10.0]
[1680341324192,20.0,20.966,20.953,10.0]
[1680341324396,7.15156067,20.966,20.953,10.0]
[1680341324598,20.0,20.965,20.953,10.0]
[1680341325192,20.0,20.965,20.954,17.0]
[1680341325392,20.0,20.965,20.955,10.0]
[1680341326999,27.15156067,20.965,20.955,10.0]
[1680341329289,53.91,20.97,20.956,17.0]
[1680341329508,53.91,20.97,20.957,10.0]
[1680341329697,53.91,20.97,20.959,10.0]
[1680341329892,53.91,20.97,20.96,17.0]
[1680341330092,53.91,20.97,20.961,10.0]
[1680341334692,61.06156067,20.97,20.957,10.0]
[1680341336711,20.0,20.969,20.955,10.0]
[1680341336889,20.0,20.969,20.957,10.0]
[1680341337088,7.15156067,20.968,20.957,10.0]
[1680341337292,20.0,20.967,20.957,10.0]
[1680341337605,27.15156067,20.967,20.957,10.0]
[1680341342916,27.15156067,20.967,20.955,10.0]
[1680341343210,116.8862,20.966,20.955,10.0]
[1680341343416,20.0,20.965,20.955,10.0]
[1680341354616,53.91,20.97,20.955,10.0]
[1680341354820,26.83,20.97,20.956,17.0]
[1680341355431,26.83,20.97,20.957,10.0]
[1680341355618,26.83,20.97,20.958,17.0]
[1680341356307,26.83,20.97,20.959,10.0]
[1680341356616,26.83,20.97,20.961,10.0]
[1680341356815,26.83,20.97,20.962,17.0]
[1680341357223,26.83,20.97,20.963,10.0]
[1680341357401,26.83,20.97,20.965,10.0]
[1680341357605,132.95934216,20.977,20.965,10.0]
[1680341357800,132.95934216,20.977,20.966,17.0]
[1680341358122,20.0,20.976,20.966,17.0]
[1680341358424,20.0,20.976,20.967,10.0]
[1680341358718,27.15156067,20.976,20.968,17.0]
[1680341358921,27.15156067,20.976,20.969,10.0]
[1680341365927,7.15156067,20.976,20.969,10.0]
[1680341366130,26.83,20.98,20.97,17.0]
[1680341367315,33.98156067,20.98,20.971,10.0]
[1680341367524,33.98156067,20.98,20.972,17.0]
[1680341367723,33.98156067,20.98,20.973,10.0]
[1680341369621,33.98156067,20.98,20.974,17.0]
[1680341375441,33.98156067,20.98,20.969,10.0]
[1680341376723,33.98156067,20.98,20.96,10.0]
[1680341377841,33.98156067,20.98,20.968,17.0]
[1680341378043,60.83156067,20.98,20.969,10.0]
[1680341379531,60.83156067,20.98,20.96,10.0]
[1680341379737,10.0,20.978,20.96,10.0]
[1680341380042,17.15156067,20.978,20.96,10.0]
[1680341381937,7.15156067,20.978,20.96,10.0]
[1680341385843,7.15156067,20.978,20.967,10.0]
[1680341393647,53.68,20.98,20.968,17.0]
[1680341393947,26.85,20.98,20.968,17.0]
[1680341394154,26.85,20.98,20.969,10.0]
[1680341394348,26.85,20.98,20.97,17.0]
[1680341394555,26.85,20.98,20.971,10.0]
[1680341394743,26.85,20.98,20.972,17.0]
[1680341394953,26.85,20.98,20.973,10.0]
[1680341397364,26.85,20.98,20.974,17.0]
[1680341399735,7.15156067,20.983,20.974,17.0]
[1680341399939,68.1194,20.988,20.975,10.0]
[1680341400148,27.15156067,20.987,20.976,17.0]
[1680341400452,20.0,20.987,20.976,17.0]
[1680341400657,7.15156067,20.986,20.976,17.0]
[1680341400854,7.15156067,20.986,20.975,10.0]
[1680341401047,20.0,20.985,20.975,10.0]
[1680341401452,27.15156067,20.985,20.975,10.0]
[1680341402152,27.15156067,20.985,20.973,10.0]
[1680341402355,27.08,20.98,20.974,17.0]
[1680341407052,27.15156067,20.985,20.975,10.0]
[1680341407360,27.15156067,20.985,20.976,17.0]
[1680341410463,68.1194,20.988,20.976,17.0]
[1680341410757,41.6685452,20.99,20.976,17.0]
[1680341410758,26.85,20.99,20.976,17.0]
[1680341410963,26.85,20.99,20.977,10.0]
[1680341411147,26.85,20.99,20.979,10.0]
[1680341411348,26.85,20.99,20.98,17.0]
[1680341411766,26.85,20.99,20.981,10.0]
[1680341411955,26.85,20.99,20.982,17.0]
[1680341414569,26.85,20.99,20.977,10.0]
[1680341414860,26.85,20.99,20.974,117.2594]
[1680341414861,10.0,20.989,20.974,117.2594]
[1680341415077,27.08,20.98,20.974,117.2594]
[1680341415249,27.08,20.98,20.967,128.688]
[1680341416552,27.08,20.98,20.971,10.0]
[1680341417450,27.08,20.98,20.971,29.071346]
[1680341418069,27.08,20.98,20.972,17.0]
[1680341418255,130.8971,20.988,20.973,10.0]
[1680341418567,130.8971,20.988,20.974,17.0]
[1680341418867,130.8971,20.988,20.975,10.0]
[1680341419169,130.8971,20.988,20.977,10.0]
[1680341419357,130.8971,20.988,20.978,17.0]
[1680341419671,138.04866067,20.988,20.978,17.0]
[1680341420263,118.04866067,20.988,20.978,17.0]
[1680341420471,110.8971,20.988,20.978,17.0]
[1680341420766,26.85,20.99,20.979,10.0]
[1680341420956,26.85,20.99,20.98,17.0]
[1680341421156,87.28458155,20.999,20.98,17.0]
[1680341421358,20.0,20.997,20.98,17.0]
[1680341421661,27.15156067,20.997,20.98,17.0]
[1680341421851,7.15156067,20.996,20.981,10.0]
[1680341422052,7.15156067,20.996,20.982,17.0]
[1680341422270,20.0,20.995,20.983,10.0]
[1680341422449,39.078265,20.995,20.985,10.0]
[1680341422653,7.15156067,20.994,20.985,10.0]
[1680341422854,7.15156067,20.994,20.986,17.0]
[1680341423265,20.0,20.993,20.986,17.0]
[1680341423970,27.15156067,20.993,20.986,17.0]
[1680341424577,20.0,20.993,20.986,17.0]
[1680341424760,19.078265,20.995,20.986,17.0]
[1680341424761,20.0,20.994,20.986,17.0]
[1680341427971,19.078265,20.995,20.986,17.0]
[1680341428175,19.078265,20.995,20.987,10.0]
[1680341428369,19.078265,20.995,20.988,17.0]
[1680341428672,19.078265,20.995,20.989,10.0]
[1680341428864,19.078265,20.995,20.99,17.0]
[1680341429975,26.83,21.0,20.99,17.0]
[1680341430484,7.22318155,20.999,20.971,29.071346]
[1680341430780,27.0,20.99,20.972,29.073]
[1680341432973,27.0,20.99,20.982,17.0]
[1680341433271,27.0,20.99,20.983,10.0]
[1680341433471,27.0,20.99,20.984,17.0]
[1680341434274,27.0,20.99,20.982,17.0]
[1680341442388,27.0,20.99,20.978,129.7575]
[1680341443792,27.0,20.99,20.982,17.0]
[1680341446089,27.0,20.99,20.978,129.7575]
[1680341446280,27.0,20.99,20.982,17.0]
[1680341452095,27.0,20.99,20.983,10.0]
[1680341452283,27.0,20.99,20.984,17.0]
[1680341452783,27.0,20.99,20.983,10.0]
[1680341453087,27.0,20.99,20.984,17.0]
[1680341453801,27.0,20.99,20.983,10.0]
[1680341453985,27.0,20.99,20.978,129.7575]
[1680341454187,27.0,20.99,20.982,17.0]
[1680341458583,27.0,20.99,20.978,10.0]
[1680341458903,27.0,20.99,20.973,10.0]
[1680341458904,10.0,20.989,20.973,10.0]
[1680341459089,10.0,20.989,20.977,10.0]
[1680341459289,17.15156067,20.989,20.977,10.0]
[1680341460082,17.15156067,20.989,20.978,17.0]
[1680341464392,10.0,20.989,20.978,17.0]
[1680341469994,10.0,20.989,20.973,10.0]
[1680341470198,10.0,20.989,20.977,10.0]
[1680341470495,10.0,20.989,20.978,17.0]
[1680341472101,54.08,20.99,20.978,17.0]
[1680341475605,54.08,20.99,20.973,10.0]
[1680341475900,27.0,20.98,20.973,10.0]
[1680341482406,27.0,20.98,20.971,10.0]
[1680341494815,27.0,20.98,20.97,10.0]
[1680341500822,27.0,20.98,20.968,10.0]
[1680341501026,27.0,20.98,20.97,10.0]
[1680341509934,27.0,20.98,20.971,17.0]
[1680341510516,27.0,20.98,20.972,10.0]
[1680341510719,27.0,20.98,20.974,10.0]
[1680341511220,27.0,20.98,20.976,10.0]
[1680341511423,111.9744,20.988,20.977,17.0]
[1680341511623,20.0,20.987,20.977,17.0]
[1680341511833,20.0,20.987,20.976,10.0]
[1680341512131,20.0,20.987,20.977,17.0]
[1680341526631,111.9744,20.988,20.978,10.0]
[1680341526830,111.9744,20.988,20.979,17.0]
[1680341527145,111.9744,20.988,20.98,10.0]
[1680341535266,111.9744,20.988,20.979,17.0]
[1680341536761,111.9744,20.988,20.98,10.0]
[1680341537066,111.9744,20.988,20.982,10.0]
[1680341537267,27.08,20.99,20.982,10.0]
[1680341537468,21.58,20.99,20.983,17.0]
[1680341543371,21.58,20.99,20.983,17.0]
[1680341559770,21.58,20.99,20.984,10.0]
[1680341560082,21.58,20.99,20.986,10.0]
[1680341560283,14.11559469,20.995,20.987,17.0]
[1680341560586,20.0,20.994,20.987,17.0]
[1680341561374,20.0,20.995,20.987,17.0]
[1680341562787,20.0,20.995,20.982,10.0]
[1680341562973,21.58,20.99,20.983,17.0]
[1680341573778,21.58,20.99,20.984,17.0]
[1680341573985,21.58,20.99,20.982,17.0]
[1680341600735,21.58,20.99,20.983,10.0]
[1680341600936,21.58,20.99,20.984,17.0]
[1680341601340,21.58,20.99,20.985,10.0]
[1680341601526,21.58,20.99,20.987,10.0]
[1680341601727,27.15156067,20.995,20.987,10.0]
[1680341601926,27.15156067,20.995,20.988,17.0]
[1680341606643,27.15156067,20.995,20.986,17.0]
[1680341607139,27.15156067,20.995,20.985,10.0]
[1680341607140,19.053,20.994,20.979,10.0]
[1680341607326,21.58,20.99,20.979,10.0]
[1680341608842,21.58,20.99,20.982,10.0]
[1680341609143,21.58,20.99,20.983,17.0]
[1680341609340,21.58,20.99,20.984,10.0]
[1680341609530,21.58,20.99,20.985,17.0]
[1680341611341,21.58,20.99,20.983,17.0]